bitfinex/quotes_SOLUSD_20251103
["timestamp","ask_amount","ask_price","bid_price","bid_amount"]
[1762152847554,5.6870065,176.05,176.0,5.6870065]
[1762152847867,5.6870065,176.04,175.99,5.6870065]
[1762152848055,6.3870065,176.03,175.98,5.6870065]
[1762152848377,26.27196331,176.06,175.96,21.262]
[1762152848378,6.3870065,176.02,175.97,5.6870065]
[1762152848673,5.6870065,176.03,175.98,5.6870065]
[1762152848860,0.7,176.05,175.98,5.6870065]
[1762152849056,5.6870065,176.03,175.98,5.6870065]
[1762152849380,6.3870065,176.05,176.0,5.6870065]
[1762152849871,5.6870065,176.04,175.99,5.6870065]
[1762152850170,6.3870065,176.04,175.99,5.6870065]
[1762152850494,6.3870065,176.03,175.96,20.592]
[1762152850652,6.3870065,176.03,175.98,5.6870065]
[1762152850981,5.6870065,176.03,175.98,6.3570065]
[1762152851158,5.6870065,176.03,175.98,5.6870065]
[1762152851361,6.3870065,176.02,175.96,20.592]
[1762152851676,5.6870065,176.01,175.96,5.6870065]
[1762152852049,5.6870065,176.01,175.96,6.3570065]
[1762152852251,6.3870065,176.02,175.97,5.6870065]
[1762152852561,5.6870065,176.02,175.96,0.67]
[1762152852745,5.6870065,176.0,175.93,0.87]
[1762152852945,0.7,176.01,175.96,5.6870065]
[1762152852946,6.3870065,176.01,175.96,5.6870065]
[1762152853182,0.7,176.04,175.99,5.6870065]
[1762152853350,5.6870065,176.03,175.98,5.6870065]
[1762152853760,6.3870065,176.03,175.98,6.3570065]
[1762152854363,5.6870065,176.03,175.98,6.3570065]
[1762152854760,6.3870065,176.03,175.98,0.67]
[1762152855076,6.3870065,176.03,175.98,6.3570065]
[1762152855580,34.79143674,176.07,175.96,26.27509234]
[1762152855581,5.6870065,176.05,176.0,5.6870065]
[1762152855761,6.3870065,176.07,176.01,6.3570065]
[1762152856154,0.7,176.07,176.02,5.6870065]
[1762152856467,0.7,176.07,176.03,5.6870065]
[1762152856702,0.7,176.11,176.05,5.6870065]
[1762152856856,5.6870065,176.1,176.05,5.6870065]
[1762152857261,0.7,176.09,176.04,5.6870065]
[1762152857589,16.16677454,176.12,176.05,5.6870065]
[1762152857802,5.6870065,176.1,176.05,5.6870065]
[1762152858102,5.6870065,176.1,176.04,5.6870065]
[1762152858300,6.3870065,176.1,176.05,5.6870065]
[1762152858479,5.6870065,176.09,176.04,5.6870065]
[1762152858675,5.6870065,176.07,176.02,5.6870065]
[1762152858878,5.6870065,176.04,175.96,0.67]
[1762152859194,0.7,176.08,175.94,5.6870065]
[1762152859195,5.6870065,175.99,175.94,5.6870065]
[1762152859496,5.6870065,175.98,175.93,6.5570065]
[1762152860004,5.6870065,175.99,175.94,6.3570065]
[1762152860295,5.6870065,175.98,175.94,0.67]
[1762152861200,5.6870065,175.99,175.94,6.3570065]
[1762152861702,5.6870065,175.98,175.94,0.67]
[1762152862083,6.38172869,176.01,175.94,0.67]
[1762152862403,5.6870065,175.98,175.94,0.67]
[1762152862707,5.6870065,175.99,175.94,6.3570065]
[1762152863082,5.6870065,175.98,175.94,0.67]
[1762152863291,5.6870065,175.97,175.93,0.2]
[1762152863496,5.6870065,175.95,175.93,0.2]
[1762152863809,5.6870065,175.96,175.93,0.2]
[1762152864117,0.7,175.99,175.93,0.2]
[1762152864304,83.08710552,176.06,175.94,0.67]
[1762152864305,0.7,176.02,175.94,0.67]
[1762152864604,5.6870065,176.01,175.96,5.6870065]
[1762152864986,6.3870065,176.01,175.96,5.6870065]
[1762152865193,6.3870065,176.01,175.96,6.3570065]
[1762152865597,6.3870065,176.01,175.96,5.6870065]
[1762152865796,5.6870065,176.02,175.97,6.3870065]
[1762152865981,11.36787454,176.03,175.98,5.6870065]
[1762152866486,6.3570065,176.02,175.97,5.6870065]
[1762152866690,5.6870065,176.01,175.95,5.6870065]
[1762152867107,5.6870065,176.01,175.96,5.6870065]
[1762152867406,6.3570065,176.02,175.97,5.6870065]
[1762152867609,6.35131538,176.02,175.96,5.6870065]
[1762152867796,5.6870065,176.01,175.96,5.6870065]
[1762152868211,5.6870065,176.0,175.95,6.3870065]
[1762152868392,6.3570065,175.99,175.94,5.6870065]
[1762152868594,5.6870065,175.97,175.93,0.2]
[1762152868988,6.3570065,175.97,175.93,0.2]
[1762152869192,5.6870065,175.97,175.93,0.2]
[1762152869515,5.6870065,175.98,175.93,6.5870065]
[1762152870183,68.462,176.02,175.95,5.6870065]
[1762152870387,68.462,176.02,175.94,0.7]
[1762152870388,21.262,176.02,175.94,0.7]
[1762152870602,7.92937559,176.01,175.96,7.92937559]
[1762152871107,8.59937559,176.01,175.96,7.92937559]
[1762152871313,7.92937559,175.98,175.93,8.12937559]
[1762152871511,7.92937559,175.98,175.93,0.2]
[1762152871692,14.28197182,175.98,175.93,0.2]
[1762152872011,8.59937559,175.97,175.93,0.2]
[1762152872799,8.59937559,175.96,175.93,0.2]
[1762152872994,7.92937559,175.96,175.93,0.2]
[1762152873398,7.92937559,175.94,175.83,0.2]
[1762152873706,0.67,175.95,175.84,0.7]
[1762152873707,20.592,175.89,175.84,0.7]
[1762152873906,20.592,175.89,175.83,0.2]
[1762152874216,0.67,175.88,175.83,0.2]
[1762152874393,7.92937559,175.86,175.83,0.2]
[1762152874589,0.67,175.88,175.83,0.2]
[1762152874793,7.92937559,175.86,175.83,0.2]
[1762152875010,7.92937559,175.87,175.83,0.2]
[1762152875209,7.92937559,175.88,175.83,0.2]
[1762152875420,4.39354956,175.91,175.83,0.2]
[1762152875718,13.61571699,175.86,175.83,0.2]
[1762152876101,7.92937559,175.88,175.83,0.92]
[1762152876299,3.72099788,175.89,175.83,0.92]
[1762152876497,7.92937559,175.88,175.83,0.92]
[1762152876694,7.92937559,175.9,175.85,8.12937559]
[1762152876903,4.39287642,175.92,175.88,7.92937559]
[1762152877120,3.72287642,175.93,175.89,7.92937559]
[1762152877327,8.59937559,175.95,175.92,7.92937559]
[1762152877328,3.72287642,175.95,175.92,7.92937559]
[1762152877498,17.33477255,175.98,175.93,7.92937559]
[1762152877696,7.92937559,175.95,175.9,7.92937559]
[1762152878036,7.92937559,175.95,175.89,7.92937559]
[1762152878339,11.65225201,175.95,175.9,7.92937559]
[1762152878512,3.72287642,175.94,175.9,7.92937559]
[1762152878706,0.67,176.01,175.93,7.92937559]
[1762152878906,11.65784054,176.0,175.94,7.92937559]
[1762152879104,7.92937559,175.99,175.94,7.92937559]
[1762152879419,11.65784054,175.99,175.94,7.92937559]
[1762152879619,32.91984054,175.99,175.93,7.92937559]
[1762152879811,34.87374853,175.99,175.93,7.92937559]
[1762152880220,3.73014268,175.98,175.94,7.92937559]
[1762152880602,8.59937559,175.98,175.92,8.64937559]
[1762152880935,7.92937559,175.96,175.89,21.312]
[1762152881223,11.66255891,175.96,175.91,7.92937559]
[1762152881432,7.92937559,175.97,175.91,7.92937559]
[1762152881615,3.7354775,175.96,175.91,8.64937559]
[1762152881814,7.92937559,175.97,175.91,8.64937559]
[1762152882128,7.92937559,175.96,175.91,8.64937559]
[1762152882317,11.66708645,175.95,175.89,7.92937559]
[1762152882518,3.73771086,175.94,175.88,8.64937559]
[1762152882718,11.66708645,175.93,175.88,0.72]
[1762152883030,3.73771086,175.92,175.88,7.92937559]
[1762152883338,3.74652998,175.91,175.88,8.64937559]
[1762152883538,7.92937559,175.93,175.88,8.64937559]
[1762152883715,3.74653288,175.92,175.88,8.64937559]
[1762152883914,3.74653288,175.91,175.89,0.72]
[1762152884117,7.92937559,175.95,175.89,8.64937559]
[1762152884350,3.74639566,175.94,175.92,7.92937559]
[1762152884541,3.74639566,175.93,175.92,7.92937559]
[1762152884746,3.74639566,175.93,175.91,7.92937559]
[1762152884911,0.67,175.96,175.91,7.92937559]
[1762152885238,3.7512961,175.95,175.91,8.64937559]
[1762152885443,3.7512961,175.94,175.91,8.64937559]
[1762152885625,3.7512961,175.93,175.91,8.64937559]
[1762152885807,7.92937559,175.96,175.91,7.92937559]
[1762152886007,3.751096,175.95,175.91,7.92937559]
[1762152886207,3.751096,175.94,175.91,8.64937559]
[1762152886423,3.751096,175.93,175.91,8.64937559]
[1762152886643,3.751096,175.92,175.88,15.47452248]
[1762152886806,4.6542589,175.99,175.91,7.92937559]
[1762152887010,3.75608065,175.98,175.95,7.92937559]
[1762152887204,3.75608065,175.97,175.89,21.312]
[1762152887502,3.75608065,175.96,175.94,7.92937559]
[1762152887707,3.75608065,175.95,175.9,0.72]
[1762152887921,10.33656764,175.99,175.94,7.92937559]
[1762152888134,3.7587866,175.98,175.94,7.92937559]
[1762152888309,3.7587866,175.97,175.94,8.64937559]
[1762152888626,3.7587866,175.96,175.94,8.64937559]
[1762152888819,3.7587866,175.95,175.94,8.64937559]
[1762152889616,3.7587866,175.95,175.94,7.92937559]
[1762152890150,3.7587866,175.95,175.92,7.92937559]
[1762152890345,3.7587866,175.94,175.93,7.92937559]
[1762152891311,3.7587866,175.94,175.89,0.72]
[1762152891515,3.7587866,175.93,175.92,7.92937559]
[1762152892414,5.68320192,175.96,175.92,7.92937559]
[1762152892622,3.75942553,175.95,175.92,7.92937559]
[1762152892830,3.75942553,175.94,175.93,7.92937559]
[1762152893038,9.44318417,175.94,175.88,20.592]
[1762152893243,3.75942553,175.93,175.89,0.72]
[1762152893414,5.68291411,175.97,175.89,0.72]
[1762152893612,3.75971138,175.96,175.89,0.72]
[1762152893834,3.75971138,175.95,175.89,0.72]
[1762152894019,0.67,175.98,175.89,0.72]
[1762152894226,3.75968328,175.97,175.89,0.72]
[1762152894535,3.75968328,175.96,175.93,7.92937559]
[1762152894726,13.6118658,175.98,175.93,7.92937559]
[1762152894926,3.76109701,175.97,175.93,7.92937559]
[1762152895236,3.76109701,175.96,175.94,7.92937559]
[1762152895441,28.52137559,175.99,175.94,8.64937559]
[1762152895639,3.76118783,175.98,175.94,8.64937559]
[1762152895819,3.76118783,175.97,175.94,8.64937559]
[1762152896019,3.76118783,175.96,175.94,8.64937559]
[1762152896353,3.76118783,175.95,175.94,0.72]
[1762152896726,3.76118783,175.95,175.93,7.92937559]
[1762152896921,3.76118783,175.94,175.93,8.64937559]
[1762152899547,0.67,175.99,175.93,8.64937559]
[1762152899747,3.76263654,175.98,175.94,7.92937559]
[1762152899948,3.76263654,175.97,175.94,7.92937559]
[1762152900134,3.76263654,175.96,175.94,7.92937559]
[1762152900446,3.76248809,175.95,175.89,0.72]
[1762152900638,3.76248809,175.94,175.91,7.92937559]
[1762152900845,4.6542589,176.0,175.93,7.92937559]
[1762152901032,149.3,176.05,175.93,7.92937559]
[1762152901033,3.76390925,175.99,175.96,20.592]
[1762152901234,6.14203727,176.07,176.0,9.78882769]
[1762152901235,3.76636581,176.03,176.0,9.78882769]
[1762152901434,4.6542589,176.09,176.02,7.92937559]
[1762152901727,14.74141286,176.12,176.01,5.68149536]
[1762152901728,9.11123788,176.05,176.01,5.68149536]
[1762152902143,9.11123788,176.05,176.02,0.72]
[1762152902538,9.11123788,176.05,176.02,21.312]
[1762152902845,9.11123788,176.05,176.04,7.92937559]
[1762152903241,9.11123788,176.05,176.04,18.43820328]
[1762152903540,9.11123788,176.05,176.04,13.60990274]
[1762152904053,9.11123788,176.05,176.04,28.52137559]
[1762152904349,9.11123788,176.05,176.04,36.45075118]
[1762152904752,0.1,176.11,176.04,36.45075118]
[1762152905045,0.1,176.11,176.1,28.52137559]
[1762152905541,0.1,176.11,176.1,29.24137559]
[1762152905921,0.1,176.11,176.1,28.52137559]
[1762152906321,0.1,176.11,176.1,29.20137559]
[1762152907050,0.1,176.11,176.1,34.87996729]
[1762152907224,0.1,176.11,176.1,14.28796729]
[1762152907426,0.1,176.12,176.11,9.78882769]
[1762152907626,0.1,176.12,176.11,16.96987224]
[1762152909334,0.1,176.12,176.11,22.6481415]
[1762152909749,4.54312151,176.23,176.14,20.592]
[1762152909948,0.78,176.23,176.19,7.92937559]
[1762152910133,0.68,176.22,176.18,28.52137559]
[1762152910547,0.68,176.22,176.11,20.35455719]
[1762152910731,0.68,176.22,176.19,7.92937559]
[1762152910932,0.68,176.22,176.11,20.35455719]
[1762152911160,0.1,176.23,176.11,20.35455719]
[1762152911161,0.1,176.23,176.2,7.92937559]
[1762152911771,0.78,176.23,176.21,7.92937559]
[1762152912144,0.78,176.23,176.14,5.67730214]
[1762152912462,0.78,176.23,176.19,7.92937559]
[1762152912631,0.78,176.23,176.2,7.92937559]
[1762152912836,0.78,176.23,176.21,7.92937559]
[1762152913139,0.78,176.23,176.2,7.92937559]
[1762152913762,0.1,176.23,176.22,7.92937559]
[1762152914636,0.1,176.23,176.22,8.26937559]
[1762152915334,0.1,176.23,176.22,13.94410036]
[1762152915741,0.1,176.23,176.22,28.52137559]
[1762152916158,0.1,176.23,176.22,38.31020328]
[1762152916665,0.1,176.23,176.22,17.71820328]
[1762152917569,0.1,176.23,176.22,23.39292805]
[1762152917869,13.60057254,176.33,176.22,23.39292805]
[1762152917870,0.68,176.33,176.22,23.96040052]
[1762152918045,0.68,176.33,176.28,7.92937559]
[1762152918652,0.68,176.33,176.28,28.52137559]
[1762152919556,0.68,176.32,176.28,34.19416887]
[1762152919866,0.68,176.35,176.28,34.19416887]
[1762152920074,0.68,176.34,176.28,34.19416887]
[1762152920440,0.68,176.34,176.28,28.52137559]
[1762152920643,0.68,176.31,176.28,28.52137559]
[1762152921752,0.68,176.31,176.28,7.92937559]
[1762152922242,0.78,176.29,176.23,5.67434744]
[1762152922449,0.78,176.29,176.28,7.92937559]
[1762152922670,0.1,176.29,176.28,7.92937559]
[1762152923674,0.1,176.29,176.28,28.52137559]
[1762152925247,0.1,176.29,176.25,5.67370107]
[1762152925248,0.78,176.29,176.24,20.592]
[1762152925461,0.1,176.29,176.25,7.92937559]
[1762152925668,0.1,176.29,176.24,20.592]
[1762152925669,0.1,176.29,176.28,7.92937559]
[1762152926459,14.41186491,176.29,176.17,9.78882769]
[1762152926659,7.92937559,176.28,176.22,7.92937559]
[1762152926881,7.92937559,176.27,176.22,7.92937559]
[1762152927080,0.71,176.27,176.22,7.92937559]
[1762152927284,0.71,176.26,176.22,7.92937559]
[1762152927604,0.71,176.26,176.21,7.92937559]
[1762152927884,0.71,176.26,176.22,7.92937559]
[1762152928570,7.92937559,176.23,176.16,7.92937559]
[1762152928767,7.92937559,176.23,176.08,9.78882769]
[1762152928768,7.92937559,176.19,176.13,7.92937559]
[1762152928964,7.92937559,176.19,176.16,20.592]
[1762152929161,8.63937559,176.18,176.12,7.92937559]
[1762152929486,7.92937559,176.17,176.11,7.92937559]
[1762152929694,8.63937559,176.17,176.11,28.52137559]
[1762152929874,0.71,176.16,176.11,28.52137559]
[1762152930277,0.71,176.16,176.12,7.92937559]
[1762152931368,0.71,176.16,176.11,7.92937559]
[1762152931787,0.71,176.16,176.09,5.67886647]
[1762152931991,0.71,176.16,176.11,7.92937559]
[1762152932296,14.31607696,176.16,176.1,7.92937559]
[1762152932591,5.68321549,176.13,176.04,0.2]
[1762152932779,9.39170877,176.12,176.06,5.68321549]
[1762152932985,0.71,176.14,176.08,5.68321549]
[1762152933172,3.70958923,176.13,176.08,5.68321549]
[1762152933371,3.70958923,176.13,176.07,20.592]
[1762152933372,0.71,176.14,176.07,20.592]
[1762152933590,4.42151543,176.13,176.08,5.68321549]
[1762152933783,0.71,176.13,176.08,5.68321549]
[1762152934671,0.71,176.13,176.08,26.27521549]
[1762152935199,9.78882769,176.18,176.1,5.68321549]
[1762152935376,3.71576083,176.17,176.14,5.68321549]
[1762152935575,0.71,176.18,176.15,5.68321549]
[1762152935782,3.71648398,176.17,176.15,5.68321549]
[1762152936102,0.71,176.18,176.15,5.68321549]
[1762152936290,3.71911474,176.17,176.15,5.68321549]
[1762152936495,0.71,176.18,176.15,5.68321549]
[1762152936676,4.39911474,176.17,176.14,20.592]
[1762152936877,0.68,176.17,176.14,20.592]
[1762152937090,0.68,176.16,176.13,5.68321549]
[1762152937290,0.68,176.16,176.1,20.592]
[1762152937598,0.68,176.16,176.12,20.592]
[1762152937898,0.68,176.16,176.13,5.68321549]
[1762152938804,3.72536311,176.15,176.12,20.592]
[1762152939001,3.72536311,176.14,176.12,20.592]
[1762152939203,0.68,176.15,176.12,20.592]
[1762152939616,3.72883604,176.14,176.12,20.592]
[1762152939784,0.68,176.15,176.12,20.592]
[1762152939986,4.40918924,176.14,176.12,20.592]
[1762152940180,0.68,176.17,176.13,5.68321549]
[1762152940393,3.73369329,176.16,176.14,5.68321549]
[1762152940710,9.78882769,176.2,176.15,5.68321549]
[1762152940909,4.41423783,176.19,176.12,20.592]
[1762152941113,3.73423783,176.18,176.12,20.592]
[1762152941412,3.73423783,176.17,176.12,20.592]
[1762152941617,4.41423783,176.16,176.14,5.68321549]
[1762152941817,0.68,176.16,176.12,20.592]
[1762152942116,3.7377388,176.15,176.06,14.19941551]
[1762152942315,3.7377388,176.14,176.11,5.68321549]
[1762152942608,0.68,176.15,176.13,20.592]
[1762152942811,4.42163934,176.14,176.13,20.592]
[1762152943020,4.42163934,176.14,176.06,14.19941551]
[1762152943021,4.42163934,176.14,176.12,5.68321549]
[1762152943216,3.74163934,176.13,176.12,5.68321549]
[1762152944714,3.74163934,176.13,176.12,20.592]
[1762152944895,3.74163934,176.13,176.12,26.27521549]
[1762152946391,0.68,176.13,176.05,14.19984662]
[1762152946589,5.68321549,176.16,176.04,0.2]
[1762152946590,4.43657968,176.12,176.04,0.2]
[1762152946883,3.75657968,176.11,176.09,5.68321549]
[1762152947189,0.68,176.12,176.09,5.68321549]
[1762152947506,4.4393425,176.11,176.09,5.68321549]
[1762152947699,3.75973135,176.1,176.09,5.68321549]
[1762152949310,3.75973135,176.1,176.08,5.68321549]
[1762152949311,4.43973135,176.1,176.08,5.68321549]
[1762152949513,11.36093163,176.13,176.08,5.68321549]
[1762152949684,11.36093163,176.13,176.07,5.68321549]
[1762152949685,0.68,176.09,176.07,5.68321549]
[1762152949890,0.68,176.09,176.08,20.592]
[1762152950101,4.44066973,176.09,176.08,20.592]
[1762152950711,4.44066973,176.09,176.08,26.27521549]
[1762152951212,3.76066973,176.09,176.08,26.27521549]
[1762152951512,0.68,176.11,176.08,26.27521549]
[1762152951828,0.68,176.09,176.08,20.592]
[1762152951990,3.75992273,176.09,176.08,20.592]
[1762152952189,0.68,176.11,176.08,20.592]
[1762152952405,3.75973182,176.1,176.09,20.592]
[1762152952802,3.75973182,176.1,176.09,26.27521549]
[1762152953414,0.68,176.11,176.09,26.27521549]
[1762152953591,0.68,176.11,176.1,5.68321549]
[1762152954098,0.68,176.13,176.1,5.68321549]
[1762152954305,3.75822904,176.12,176.1,5.68321549]
[1762152954501,0.68,176.13,176.1,5.68321549]
[1762152954701,3.75839064,176.12,176.1,5.68321549]
[1762152954897,0.68,176.13,176.1,5.68321549]
[1762152956218,0.68,176.13,176.08,20.592]
[1762152956434,0.68,176.13,176.04,0.2]
[1762152956435,5.68321549,176.09,176.04,0.2]
[1762152956605,5.68321549,176.08,176.04,0.2]
[1762152956807,5.68321549,176.07,176.04,0.2]
[1762152957129,5.68321549,176.08,176.04,0.2]
[1762152957325,11.36255165,176.08,176.04,0.2]
[1762152957635,0.68,176.07,176.04,0.2]
[1762152959024,5.68321549,176.06,176.04,0.2]
[1762152959221,5.68321549,176.05,176.04,0.2]
[1762152959425,5.68321549,176.05,175.99,20.592]
[1762152959726,0.68,176.04,175.99,26.27521549]
[1762152960401,0.68,176.04,175.99,20.592]
[1762152960601,5.68321549,176.03,175.94,0.2]
[1762152960799,5.68321549,176.03,175.97,5.68321549]
[1762152961000,5.68321549,176.01,175.94,0.2]
[1762152961216,0.68,176.02,175.99,5.68321549]
[1762152961409,3.75419553,176.05,175.99,0.2]
[1762152961604,0.68,176.05,175.97,20.592]
[1762152961803,0.68,176.04,176.0,5.68321549]
[1762152962225,0.68,176.04,176.01,5.68321549]
[1762152962522,9.43672309,176.07,176.02,5.68321549]
[1762152962523,3.7535076,176.07,176.02,5.68321549]
[1762152962723,0.68,176.07,176.05,5.68321549]
[1762152962896,0.68,176.06,176.0,5.68321549]
[1762152963101,0.68,176.06,175.99,0.2]
[1762152963317,0.68,176.06,176.02,5.68321549]
[1762152963514,0.68,176.06,175.97,20.592]
[1762152963714,0.68,176.06,176.02,5.68321549]
[1762152963912,0.68,176.06,175.97,20.592]
[1762152964122,0.68,176.06,176.01,26.27521549]
[1762152964311,0.68,176.06,176.02,5.68321549]
[1762152964824,0.68,176.06,176.01,26.27521549]
[1762152965131,12.04312864,176.06,176.01,20.592]
[1762152965325,12.04312864,176.06,176.01,5.68321549]
[1762152965518,0.68,176.05,176.01,5.68321549]
[1762152966230,4.44435145,176.05,176.01,5.68321549]
[1762152966429,0.68,176.05,176.02,5.68321549]
[1762152966662,9.78882769,176.1,176.0,5.68170794]
[1762152966663,21.15093279,176.1,176.04,5.68321549]
[1762152966842,0.68,176.07,176.03,20.592]
[1762152967021,0.68,176.07,176.03,26.27521549]
[1762152967342,0.62754253,176.07,176.03,26.27521549]
[1762152967745,6.31075802,176.07,176.02,5.68321549]
[1762152967921,9.44946334,176.06,176.01,26.27521549]
[1762152968235,3.7701494,176.05,176.01,26.27521549]
[1762152968407,58.56310986,176.06,176.01,26.27521549]
[1762152968608,3.76979634,176.05,176.01,26.27521549]
[1762152968810,9.45301183,176.04,175.97,20.592]
[1762152969007,58.56310986,176.06,176.0,5.68321549]
[1762152969242,4.44984906,176.05,176.0,5.68321549]
[1762152969405,3.76984906,176.04,175.97,20.592]
[1762152969611,3.76984906,176.03,175.99,5.68321549]
[1762152969819,0.68,176.03,175.98,20.592]
[1762152970037,0.68,176.03,176.0,5.68321549]
[1762152970211,3.77678241,176.02,175.96,20.592]
[1762152970457,3.77678241,176.01,175.98,2.23500816]
[1762152970654,0.68,176.02,175.99,2.23500816]
[1762152970970,3.7758072,176.01,175.99,2.23500816]
[1762152971182,51.86104506,176.06,176.0,2.23500816]
[1762152971357,4.45743121,176.05,176.01,2.23500816]
[1762152971541,3.77743121,176.04,176.01,2.23500816]
[1762152971743,3.77743121,176.03,176.01,2.23500816]
[1762152972061,0.68,176.03,175.99,2.23500816]
[1762152972245,3.78096058,176.02,175.99,2.23500816]
[1762152972448,47.2,176.06,176.01,2.23500816]
[1762152972661,3.78137399,176.05,176.02,2.23500816]
[1762152972865,3.78137399,176.04,176.02,2.23500816]
[1762152973066,0.68,176.05,176.01,2.23500816]
[1762152973380,3.78385633,176.04,176.02,2.23500816]
[1762152973572,0.68,176.05,176.01,22.82700816]
[1762152973774,3.78385516,176.04,176.01,22.82700816]
[1762152973942,3.78385516,176.03,175.97,26.2747601]
[1762152974143,3.78385516,176.02,175.99,2.23500816]
[1762152974342,3.78385516,176.01,175.98,2.23500816]
[1762152974542,0.68,176.03,175.98,2.23500816]
[1762152974750,3.78223179,176.02,175.98,2.23500816]
[1762152975051,3.78223179,176.01,175.98,2.23500816]
[1762152975255,0.68,176.03,175.97,26.2747601]
[1762152975459,2.23500816,176.04,175.97,26.2747601]
[1762152975460,4.46392993,176.02,175.99,2.23500816]
[1762152975666,3.78392993,176.01,175.99,2.23500816]
[1762152975868,0.68,176.01,175.99,2.23500816]
[1762152976072,0.68,176.03,175.99,2.23500816]
[1762152976244,3.7841139,176.02,175.99,2.23500816]
[1762152976449,3.7841139,176.01,175.99,2.23500816]
[1762152976646,0.68,176.03,175.99,2.23500816]
[1762152976843,3.78391635,176.02,175.97,26.2747601]
[1762152977078,3.78391635,176.01,175.97,28.50976826]
[1762152977275,2.91500816,176.03,175.97,28.50976826]
[1762152977582,4.46359749,176.02,175.97,28.50976826]
[1762152977753,3.78359749,176.01,175.97,20.592]
[1762152977953,6.69860565,176.0,175.94,2.43500816]
[1762152978156,3.78359749,175.99,175.96,20.592]
[1762152978376,2.91500816,175.99,175.96,20.592]
[1762152978673,2.23500816,175.97,175.94,0.2]
[1762152978855,3.78293323,175.96,175.94,0.2]
[1762152979050,0.68,175.97,175.94,0.2]
[1762152979249,3.7872719,175.96,175.94,0.2]
[1762152979546,0.68,175.96,175.94,0.2]
[1762152979750,2.23500816,176.02,175.95,2.23500816]
[1762152979973,4.46593051,176.01,175.96,2.23500816]
[1762152980152,3.78593051,176.0,175.96,2.23500816]
[1762152980352,3.78593051,175.99,175.96,2.23500816]
[1762152980562,0.68,175.99,175.96,2.23500816]
[1762152981085,0.68,175.98,175.96,2.23500816]
[1762152982687,0.68,175.98,175.95,28.51021045]
[1762152982865,3.78724841,176.0,175.97,2.23500816]
[1762152983178,0.68,176.0,175.97,2.23500816]
[1762152983380,0.68,175.99,175.97,2.23500816]
[1762152983566,0.68,175.99,175.97,20.592]
[1762152984169,0.68,175.99,175.95,7.91842013]
[1762152984367,0.68,175.99,175.96,20.592]
[1762152984793,0.68,175.99,175.96,22.82700816]
[1762152985084,2.23500816,175.98,175.94,20.792]
[1762152985492,0.68,175.97,175.94,20.792]
[1762152985693,0.68,175.97,175.94,23.02700816]
[1762152985873,0.68,175.97,175.95,2.23500816]
[1762152986062,0.68,175.97,175.96,2.23500816]
[1762152986692,0.66,175.97,175.96,2.23500816]
[1762152987577,0.66,175.99,175.96,2.23500816]
[1762152987981,0.66,175.99,175.97,2.23500816]
[1762152988872,0.66,175.99,175.96,2.23500816]
[1762152989904,0.66,176.01,175.98,2.23500816]
[1762152990207,3.7942481,176.0,175.98,2.23500816]
[1762152990389,0.66,176.02,175.98,2.23500816]
[1762152990584,3.79529139,176.01,175.99,2.23500816]
[1762152990779,50.09500816,176.03,175.98,2.23500816]
[1762152990980,4.45841715,176.02,175.98,2.23500816]
[1762152991213,4.45841715,176.01,175.97,2.23500816]
[1762152991381,3.79841715,176.0,175.97,2.23500816]
[1762152991726,0.66,176.0,175.94,0.2]
[1762152991882,0.66,176.0,175.96,20.592]
[1762152991883,4.46097056,175.99,175.96,20.592]
[1762152992208,0.66,175.99,175.96,2.23500816]
[1762152992416,4.46208039,175.98,175.95,2.23500816]
[1762152992577,3.80208039,175.97,175.95,20.592]
[1762152992775,0.66,175.97,175.95,20.592]
[1762152993003,0.66,175.96,175.95,20.592]
[1762152994094,4.46421141,175.96,175.95,20.592]
[1762152995174,4.46421141,175.96,175.94,0.2]
[1762152995398,0.66,175.96,175.94,0.2]
[1762152995575,0.66,175.96,175.94,3.69407698]
[1762152995996,0.66,175.96,175.95,20.592]
[1762152996198,3.80858038,175.96,175.95,20.592]
[1762152996781,3.80973492,175.96,175.95,20.592]
[1762152997607,0.72,176.01,175.95,26.27543279]
[1762152997909,3.81302663,176.0,175.98,3.49407698]
[1762152998086,3.81302663,175.99,175.95,26.27543279]